[Event "November 21 Late 2023"]
[Site "https://www.chess.com"]
[Date "2023.11.21"]
[Round "2"]
[White "Mazzilli, Piero"]
[Black "Bilan, Danila"]
[Result "0-1"]
[Board "116"]
[TimeControl "180+1"]
[WhiteFideId "807087"]
[BlackFideId "24161918"]
[WhiteElo "2356"]
[BlackElo "2146"]
[WhiteTeam "ITA"]
[BlackTeam "RUS"]
[WhiteClock "0:00:03"]
[BlackClock "0:00:06"]

1. d4 {[%clk 0:03:00]}  d5 {[%clk 0:02:56]} 2. c4 {[%clk 0:03:00]}  c6 {[%clk 0:02:56]} 3. Nc3 {[%clk 0:03:01]}  Nf6 {[%clk 0:02:56]} 4. cxd5 {[%clk 0:03:01]}  Nxd5 {[%clk 0:02:51]} 5. Nf3 {[%clk 0:03:02]}  Nxc3 {[%clk 0:02:47]} 6. bxc3 {[%clk 0:03:02]}  g6 {[%clk 0:02:47]} 7. e4 {[%clk 0:03:02]}  Bg7 {[%clk 0:02:47]} 8. Bc4 {[%clk 0:03:01]}  O-O {[%clk 0:02:47]} 9. O-O {[%clk 0:03:01]}  c5 {[%clk 0:02:46]} 10. Be3 {[%clk 0:02:55]}  Bg4 {[%clk 0:02:41]} 11. e5 {[%clk 0:02:55]}  Nc6 {[%clk 0:02:33]} 12. Rb1 {[%clk 0:02:16]}  Bf5 {[%clk 0:02:18]} 13. Bd3 {[%clk 0:02:03]}  cxd4 {[%clk 0:02:01]} 14. cxd4 {[%clk 0:01:57]}  Be6 {[%clk 0:01:36]} 15. Rxb7 {[%clk 0:01:49]}  Bxa2 {[%clk 0:01:29]} 16. Be4 {[%clk 0:01:05]}  Bd5 {[%clk 0:01:24]} 17. Bxd5 {[%clk 0:01:03]}  Qxd5 {[%clk 0:01:24]} 18. Qb3 {[%clk 0:00:55]}  Rfd8 {[%clk 0:01:07]} 19. Rc1 {[%clk 0:00:46]}  Qxb3 {[%clk 0:00:39]} 20. Rxb3 {[%clk 0:00:47]}  Nb8 {[%clk 0:00:22]} 21. Rb7 {[%clk 0:00:43]}  Bf8 {[%clk 0:00:15]} 22. h4 {[%clk 0:00:21]}  Rd7 {[%clk 0:00:07]} 23. Rcc7 {[%clk 0:00:18]}  Rxc7 {[%clk 0:00:07]} 24. Rxc7 {[%clk 0:00:18]}  Na6 {[%clk 0:00:07]} 25. Rb7 {[%clk 0:00:17]}  e6 {[%clk 0:00:05]} 26. Ng5 {[%clk 0:00:17]}  Rb8 {[%clk 0:00:03]} 27. Rxa7 {[%clk 0:00:16]}  Rb1+ {[%clk 0:00:02]} 28. Kh2 {[%clk 0:00:16]}  Nb4 {[%clk 0:00:01]} 29. Nxf7 {[%clk 0:00:15]}  Nc2 {[%clk 0:00:01]} 30. Ng5 {[%clk 0:00:14]}  Nxe3 {[%clk 0:00:01]} 31. fxe3 {[%clk 0:00:15]}  Bh6 {[%clk 0:00:01]} 32. Ra8+ {[%clk 0:00:13]}  Kg7 {[%clk 0:00:02]} 33. Nxe6+ {[%clk 0:00:13]}  Kf7 {[%clk 0:00:03]} 34. Ng5+ {[%clk 0:00:13]}  Ke7 {[%clk 0:00:04]} 35. Ra7+ {[%clk 0:00:13]}  Ke8 {[%clk 0:00:04]} 36. Rxh7 {[%clk 0:00:13]}  Bf8 {[%clk 0:00:04]} 37. Ne6 {[%clk 0:00:13]}  Ba3 {[%clk 0:00:03]} 38. d5 {[%clk 0:00:11]}  Bb2 {[%clk 0:00:04]} 39. d6 {[%clk 0:00:10]}  Bxe5+ {[%clk 0:00:04]} 40. g3 {[%clk 0:00:09]}  Bxd6 {[%clk 0:00:05]} 41. Kh3 {[%clk 0:00:07]}  Re1 {[%clk 0:00:05]} 42. Ng7+ {[%clk 0:00:05]}  Kf8 {[%clk 0:00:05]} 43. Ne6+ {[%clk 0:00:05]}  Kg8 {[%clk 0:00:05]} 44. Rg7+ {[%clk 0:00:05]}  Kh8 {[%clk 0:00:05]} 45. Rxg6 {[%clk 0:00:06]}  Rxe3 {[%clk 0:00:05]} 46. Nd4 {[%clk 0:00:05]}  Be5 {[%clk 0:00:05]} 47. Nf5 {[%clk 0:00:05]}  Rf3 {[%clk 0:00:05]} 48. Rg5 {[%clk 0:00:05]}  Bf6 {[%clk 0:00:04]} 49. Rg4 {[%clk 0:00:04]}  Rxf5 {[%clk 0:00:03]} 50. Rg6 {[%clk 0:00:03]}  Kh7 {[%clk 0:00:03]} 51. Rg4 {[%clk 0:00:02]}  Rf3 {[%clk 0:00:03]} 52. Kg2 {[%clk 0:00:03]}  Rb3 {[%clk 0:00:03]} 53. Rf4 {[%clk 0:00:04]}  Be5 {[%clk 0:00:03]} 54. Rf3 {[%clk 0:00:05]}  Rb2+ {[%clk 0:00:03]} 55. Kh3 {[%clk 0:00:05]}  Kg6 {[%clk 0:00:04]} 56. Kg4 {[%clk 0:00:06]}  Rb4+ {[%clk 0:00:03]} 57. Kh3 {[%clk 0:00:06]}  Re4 {[%clk 0:00:04]} 58. Rd3 {[%clk 0:00:06]}  Re2 {[%clk 0:00:04]} 59. Rb3 {[%clk 0:00:07]}  Kf5 {[%clk 0:00:04]} 60. Rb5 {[%clk 0:00:06]}  Re3 {[%clk 0:00:04]} 61. Kh2 {[%clk 0:00:07]}  Ke4 {[%clk 0:00:03]} 62. Rb4+ {[%clk 0:00:07]}  Kf3 {[%clk 0:00:04]} 63. h5 {[%clk 0:00:04]}  Bxg3+ {[%clk 0:00:04]} 64. Kh3 {[%clk 0:00:05]}  Bf4 {[%clk 0:00:04]} 65. Rc4 {[%clk 0:00:04]}  Re5 {[%clk 0:00:04]} 66. Kh4 {[%clk 0:00:04]}  Bg3+ {[%clk 0:00:04]} 67. Kh3 {[%clk 0:00:04]}  Rxh5+ {[%clk 0:00:05]} 68. Rh4 {[%clk 0:00:03]}  Rxh4# {[%clk 0:00:06]} 0-1

[Event "November 21 Late 2023"]
[Site "https://www.chess.com"]
[Date "2023.11.21"]
[Round "2"]
[White "Serban, Cristian-Stefan"]
[Black "Garrido, Denis"]
[Result "0-1"]
[Board "117"]
[TimeControl "180+1"]
[WhiteFideId "1241443"]
[BlackFideId "601217"]
[WhiteElo "2028"]
[BlackElo "2354"]
[WhiteTeam "ROU"]
[BlackTeam "FRA"]
[WhiteClock "0:00:31"]
[BlackClock "0:01:10"]

1. e4 {[%clk 0:02:59]}  e6 {[%clk 0:02:59]} 2. d4 {[%clk 0:02:58]}  d5 {[%clk 0:03:00]} 3. Bd3 {[%clk 0:02:58]}  c5 {[%clk 0:02:59]} 4. c3 {[%clk 0:02:58]}  Nc6 {[%clk 0:02:53]} 5. Nf3 {[%clk 0:02:48]}  cxd4 {[%clk 0:02:53]} 6. cxd4 {[%clk 0:02:49]}  dxe4 {[%clk 0:02:50]} 7. Bxe4 {[%clk 0:02:50]}  Nf6 {[%clk 0:02:49]} 8. Bxc6+ {[%clk 0:02:50]}  bxc6 {[%clk 0:02:49]} 9. O-O {[%clk 0:02:49]}  Be7 {[%clk 0:02:47]} 10. Ne5 {[%clk 0:02:49]}  Bb7 {[%clk 0:02:47]} 11. Qa4 {[%clk 0:02:42]}  Qb6 {[%clk 0:02:45]} 12. Nd2 {[%clk 0:02:19]}  O-O {[%clk 0:02:45]} 13. Ndc4 {[%clk 0:02:19]}  Qb5 {[%clk 0:02:40]} 14. Qc2 {[%clk 0:02:16]}  Rfd8 {[%clk 0:02:38]} 15. Be3 {[%clk 0:02:08]}  Nd5 {[%clk 0:02:27]} 16. a4 {[%clk 0:02:08]}  Qa6 {[%clk 0:02:18]} 17. b3 {[%clk 0:01:37]}  Rac8 {[%clk 0:02:16]} 18. Nd3 {[%clk 0:01:29]}  Nxe3 {[%clk 0:01:47]} 19. fxe3 {[%clk 0:01:26]}  c5 {[%clk 0:01:47]} 20. dxc5 {[%clk 0:01:15]}  Bxc5 {[%clk 0:01:44]} 21. Nxc5 {[%clk 0:01:16]}  Rxc5 {[%clk 0:01:43]} 22. Rad1 {[%clk 0:01:16]}  Rcd5 {[%clk 0:01:38]} 23. Ne5 {[%clk 0:01:06]}  f6 {[%clk 0:01:23]} 24. Qc7 {[%clk 0:01:06]}  Rxd1 {[%clk 0:01:10]} 25. Rxd1 {[%clk 0:00:31]} 0-1

[Event "November 21 Late 2023"]
[Site "https://www.chess.com"]
[Date "2023.11.21"]
[Round "2"]
[White "Szente Varga, Fruzsina"]
[Black "dodoucb"]
[Result "1-0"]
[Board "118"]
[TimeControl "180+1"]
[WhiteFideId "712264"]
[WhiteElo "1994"]
[BlackElo "2507"]
[WhiteTeam "HUN"]
[WhiteClock "0:02:16"]
[BlackClock "0:00:05"]

1. e4 {[%clk 0:02:55]}  e5 {[%clk 0:02:52]} 2. d4 {[%clk 0:02:53]}  exd4 {[%clk 0:02:49]} 3. Qxd4 {[%clk 0:02:54]}  Nc6 {[%clk 0:02:47]} 4. Qe3 {[%clk 0:02:54]}  Nf6 {[%clk 0:02:34]} 5. Bd2 {[%clk 0:02:54]}  Be7 {[%clk 0:02:31]} 6. Nc3 {[%clk 0:02:55]}  O-O {[%clk 0:02:18]} 7. O-O-O {[%clk 0:02:52]}  d5 {[%clk 0:01:48]} 8. exd5 {[%clk 0:02:48]}  Nxd5 {[%clk 0:01:47]} 9. Nxd5 {[%clk 0:02:49]}  Qxd5 {[%clk 0:01:47]} 10. Kb1 {[%clk 0:02:47]}  Be6 {[%clk 0:01:41]} 11. b3 {[%clk 0:02:39]}  Rad8 {[%clk 0:01:09]} 12. Nf3 {[%clk 0:02:33]}  Bc5 {[%clk 0:00:59]} 13. Qg5 {[%clk 0:02:28]}  h6 {[%clk 0:00:45]} 14. Qg3 {[%clk 0:02:23]}  Nb4 {[%clk 0:00:30]} 15. Bc4 {[%clk 0:02:22]}  Qf5 {[%clk 0:00:23]} 16. Bxb4 {[%clk 0:02:20]}  Bxc4 {[%clk 0:00:19]} 17. Bc3 {[%clk 0:02:20]}  g6 {[%clk 0:00:11]} 18. bxc4 {[%clk 0:02:20]}  Ba3 {[%clk 0:00:05]} 19. Qe5 {[%clk 0:02:16]} 1-0

[Event "November 21 Late 2023"]
[Site "https://www.chess.com"]
[Date "2023.11.21"]
[Round "2"]
[White "Kochiev, Ivan"]
[Black "Romero Ruscalleda, Josep"]
[Result "1-0"]
[Board "119"]
[TimeControl "180+1"]
[WhiteFideId "2917890"]
[BlackFideId "2231859"]
[WhiteElo "2285"]
[BlackElo "2183"]
[WhiteTeam "BUL"]
[BlackTeam "ESP"]
[WhiteClock "0:00:06"]
[BlackClock "0:00:34"]

1. e4 {[%clk 0:03:00]}  g6 {[%clk 0:03:00]} 2. d4 {[%clk 0:02:57]}  Bg7 {[%clk 0:03:01]} 3. c3 {[%clk 0:02:56]}  d6 {[%clk 0:03:01]} 4. Bd3 {[%clk 0:02:55]}  Nf6 {[%clk 0:03:01]} 5. f4 {[%clk 0:02:56]}  O-O {[%clk 0:03:00]} 6. Nf3 {[%clk 0:02:56]}  Nbd7 {[%clk 0:02:58]} 7. e5 {[%clk 0:02:56]}  Nd5 {[%clk 0:02:57]} 8. O-O {[%clk 0:02:54]}  c5 {[%clk 0:02:57]} 9. Qe2 {[%clk 0:02:32]}  e6 {[%clk 0:02:50]} 10. Be3 {[%clk 0:02:14]}  Nxe3 {[%clk 0:02:44]} 11. Qxe3 {[%clk 0:02:12]}  cxd4 {[%clk 0:02:44]} 12. cxd4 {[%clk 0:02:12]}  dxe5 {[%clk 0:02:42]} 13. dxe5 {[%clk 0:02:11]}  Qb6 {[%clk 0:02:41]} 14. Qxb6 {[%clk 0:02:08]}  Nxb6 {[%clk 0:02:42]} 15. Nc3 {[%clk 0:02:07]}  Bd7 {[%clk 0:02:41]} 16. Be4 {[%clk 0:02:07]}  Rab8 {[%clk 0:02:39]} 17. Rad1 {[%clk 0:02:06]}  Rfd8 {[%clk 0:02:38]} 18. Rd3 {[%clk 0:01:43]}  Bc6 {[%clk 0:02:12]} 19. Rfd1 {[%clk 0:01:29]}  Rxd3 {[%clk 0:02:08]} 20. Rxd3 {[%clk 0:01:29]}  Rc8 {[%clk 0:01:55]} 21. Bxc6 {[%clk 0:01:22]}  Rxc6 {[%clk 0:01:56]} 22. Nd4 {[%clk 0:01:23]}  Rc4 {[%clk 0:01:50]} 23. g3 {[%clk 0:01:18]}  Bf8 {[%clk 0:01:47]} 24. Ndb5 {[%clk 0:01:16]}  Bc5+ {[%clk 0:01:40]} 25. Kg2 {[%clk 0:01:03]}  a6 {[%clk 0:01:40]} 26. Nd6 {[%clk 0:01:02]}  Rb4 {[%clk 0:01:31]} 27. b3 {[%clk 0:00:52]}  Rd4 {[%clk 0:01:09]} 28. Rxd4 {[%clk 0:00:41]}  Bxd4 {[%clk 0:01:09]} 29. Ne2 {[%clk 0:00:42]}  Bc5 {[%clk 0:01:06]} 30. Nxb7 {[%clk 0:00:42]}  Be7 {[%clk 0:01:07]} 31. Na5 {[%clk 0:00:30]}  Nd5 {[%clk 0:01:04]} 32. Nc6 {[%clk 0:00:27]}  Bc5 {[%clk 0:01:01]} 33. Kf3 {[%clk 0:00:22]}  Kf8 {[%clk 0:00:59]} 34. Ke4 {[%clk 0:00:22]}  Ke8 {[%clk 0:00:59]} 35. Nb8 {[%clk 0:00:17]}  a5 {[%clk 0:00:57]} 36. Nc6 {[%clk 0:00:17]}  Bb6 {[%clk 0:00:55]} 37. Ncd4 {[%clk 0:00:12]}  Kd7 {[%clk 0:00:54]} 38. a3 {[%clk 0:00:08]}  h6 {[%clk 0:00:53]} 39. Nc1 {[%clk 0:00:08]}  Nc3+ {[%clk 0:00:51]} 40. Kd3 {[%clk 0:00:04]}  Bxd4 {[%clk 0:00:47]} 41. Kxd4 {[%clk 0:00:04]}  Nb5+ {[%clk 0:00:47]} 42. Kc5 {[%clk 0:00:03]}  Nxa3 {[%clk 0:00:48]} 43. Kb6 {[%clk 0:00:04]}  a4 {[%clk 0:00:40]} 44. bxa4 {[%clk 0:00:03]}  Nc4+ {[%clk 0:00:40]} 45. Kc5 {[%clk 0:00:03]}  Na5 {[%clk 0:00:40]} 46. Ne2 {[%clk 0:00:02]}  Kc7 {[%clk 0:00:39]} 47. Nd4 {[%clk 0:00:02]}  Nb7+ {[%clk 0:00:39]} 48. Kb4 {[%clk 0:00:02]}  Kb6 {[%clk 0:00:38]} 49. Nb3 {[%clk 0:00:03]}  Ka6 {[%clk 0:00:36]} 50. Nc5+ {[%clk 0:00:03]}  Nxc5 {[%clk 0:00:36]} 51. Kxc5 {[%clk 0:00:04]}  Ka5 {[%clk 0:00:34]} 52. Kd6 {[%clk 0:00:04]}  Kxa4 {[%clk 0:00:34]} 53. Ke7 {[%clk 0:00:04]}  Kb5 {[%clk 0:00:35]} 54. Kxf7 {[%clk 0:00:05]}  Kc6 {[%clk 0:00:36]} 55. Kxe6 {[%clk 0:00:06]}  Kc5 {[%clk 0:00:34]} 56. Kf6 {[%clk 0:00:06]} 1-0

[Event "November 21 Late 2023"]
[Site "https://www.chess.com"]
[Date "2023.11.21"]
[Round "2"]
[White "Zivic, Dragan"]
[Black "Seletsky, Grigory"]
[Result "1/2-1/2"]
[Board "121"]
[TimeControl "180+1"]
[WhiteFideId "904740"]
[BlackFideId "14112191"]
[WhiteElo "2073"]
[BlackElo "2482"]
[WhiteTeam "SRB"]
[BlackTeam "UKR"]
[WhiteClock "0:00:20"]
[BlackClock "0:00:44"]

1. c4 {[%clk 0:02:50]}  e6 {[%clk 0:02:52]} 2. Nc3 {[%clk 0:02:50]}  Bb4 {[%clk 0:02:50]} 3. Nf3 {[%clk 0:02:45]}  Nf6 {[%clk 0:02:48]} 4. g4 {[%clk 0:02:44]}  Nxg4 {[%clk 0:02:45]} 5. Rg1 {[%clk 0:02:43]}  Nf6 {[%clk 0:02:46]} 6. Rxg7 {[%clk 0:02:42]}  Rg8 {[%clk 0:02:45]} 7. Rxg8+ {[%clk 0:02:39]}  Nxg8 {[%clk 0:02:45]} 8. d4 {[%clk 0:02:37]}  Bxc3+ {[%clk 0:02:44]} 9. bxc3 {[%clk 0:02:37]}  d6 {[%clk 0:02:44]} 10. Bg5 {[%clk 0:02:37]}  f6 {[%clk 0:02:43]} 11. Bh4 {[%clk 0:02:36]}  Qe7 {[%clk 0:02:44]} 12. e4 {[%clk 0:02:33]}  e5 {[%clk 0:02:41]} 13. dxe5 {[%clk 0:02:26]}  dxe5 {[%clk 0:02:39]} 14. Qd2 {[%clk 0:02:17]}  Bg4 {[%clk 0:02:33]} 15. Be2 {[%clk 0:02:17]}  Nd7 {[%clk 0:02:33]} 16. Nd4 {[%clk 0:02:05]}  Bxe2 {[%clk 0:02:21]} 17. Nf5 {[%clk 0:01:51]}  Qa3 {[%clk 0:02:20]} 18. Kxe2 {[%clk 0:01:50]}  O-O-O {[%clk 0:02:19]} 19. Rd1 {[%clk 0:01:43]}  Qa4 {[%clk 0:02:02]} 20. Qd5 {[%clk 0:01:31]}  Qxa2+ {[%clk 0:02:02]} 21. Rd2 {[%clk 0:01:31]}  Qb1 {[%clk 0:02:01]} 22. f3 {[%clk 0:01:28]}  Qh1 {[%clk 0:01:40]} 23. Bf2 {[%clk 0:01:27]}  a6 {[%clk 0:01:38]} 24. c5 {[%clk 0:01:26]}  Qb1 {[%clk 0:01:26]} 25. c4 {[%clk 0:01:08]}  c6 {[%clk 0:01:10]} 26. Qd6 {[%clk 0:00:53]}  Qb3 {[%clk 0:01:06]} 27. Ng7 {[%clk 0:00:47]}  Qxc4+ {[%clk 0:01:05]} 28. Ke1 {[%clk 0:00:45]}  Qc1+ {[%clk 0:00:55]} 29. Rd1 {[%clk 0:00:40]}  Qc3+ {[%clk 0:00:52]} 30. Kf1 {[%clk 0:00:37]}  Qxf3 {[%clk 0:00:52]} 31. Ne6 {[%clk 0:00:37]}  Qh1+ {[%clk 0:00:51]} 32. Ke2 {[%clk 0:00:27]}  Qxe4+ {[%clk 0:00:51]} 33. Be3 {[%clk 0:00:20]}  Qg2+ {[%clk 0:00:49]} 34. Bf2 {[%clk 0:00:20]}  Qe4+ {[%clk 0:00:49]} 35. Be3 {[%clk 0:00:20]}  Qg2+ {[%clk 0:00:45]} 36. Bf2 {[%clk 0:00:20]}  Qe4+ {[%clk 0:00:44]} 1/2-1/2

[Event "November 21 Late 2023"]
[Site "https://www.chess.com"]
[Date "2023.11.21"]
[Round "2"]
[White "Krzywda, Andrzej"]
[Black "Jarocka, Liwia"]
[Result "0-1"]
[Board "123"]
[TimeControl "180+1"]
[WhiteFideId "1114565"]
[BlackFideId "21807558"]
[WhiteElo "2130"]
[BlackElo "2001"]
[WhiteTeam "POL"]
[BlackTeam "POL"]
[WhiteClock "0:00:04"]
[BlackClock "0:01:06"]

1. e4 {[%clk 0:03:00]}  c5 {[%clk 0:02:59]} 2. Nf3 {[%clk 0:03:00]}  Nc6 {[%clk 0:02:59]} 3. d4 {[%clk 0:03:01]}  cxd4 {[%clk 0:02:59]} 4. Nxd4 {[%clk 0:03:01]}  Nf6 {[%clk 0:02:59]} 5. Nc3 {[%clk 0:03:01]}  d6 {[%clk 0:03:00]} 6. Bg5 {[%clk 0:03:01]}  e6 {[%clk 0:02:59]} 7. Qd2 {[%clk 0:03:01]}  a6 {[%clk 0:03:00]} 8. O-O-O {[%clk 0:03:01]}  h6 {[%clk 0:03:00]} 9. Nxc6 {[%clk 0:03:00]}  bxc6 {[%clk 0:03:00]} 10. Bf4 {[%clk 0:03:01]}  d5 {[%clk 0:03:01]} 11. Qe3 {[%clk 0:03:01]}  Qa5 {[%clk 0:02:58]} 12. Be2 {[%clk 0:02:47]}  Bb4 {[%clk 0:02:56]} 13. exd5 {[%clk 0:02:11]}  Bxc3 {[%clk 0:02:45]} 14. Qxc3 {[%clk 0:02:09]}  Qxc3 {[%clk 0:02:44]} 15. bxc3 {[%clk 0:02:10]}  cxd5 {[%clk 0:02:42]} 16. c4 {[%clk 0:02:04]}  Bb7 {[%clk 0:02:35]} 17. cxd5 {[%clk 0:02:04]}  Nxd5 {[%clk 0:02:32]} 18. Bf3 {[%clk 0:01:58]}  O-O {[%clk 0:02:23]} 19. Bd2 {[%clk 0:01:38]}  Rfc8 {[%clk 0:02:16]} 20. Rhe1 {[%clk 0:01:28]}  Rab8 {[%clk 0:02:13]} 21. Re4 {[%clk 0:01:11]}  Nc3 {[%clk 0:01:57]} 22. Bxc3 {[%clk 0:00:54]}  Bxe4 {[%clk 0:01:56]} 23. Bxe4 {[%clk 0:00:54]}  Rxc3 {[%clk 0:01:55]} 24. Rd4 {[%clk 0:00:46]}  Ra3 {[%clk 0:01:53]} 25. h4 {[%clk 0:00:29]}  Rxa2 {[%clk 0:01:49]} 26. g4 {[%clk 0:00:28]}  Ra1+ {[%clk 0:01:37]} 27. Kd2 {[%clk 0:00:28]}  Ra5 {[%clk 0:01:36]} 28. Rd6 {[%clk 0:00:25]}  Ra4 {[%clk 0:01:27]} 29. f3 {[%clk 0:00:25]}  a5 {[%clk 0:01:27]} 30. Ra6 {[%clk 0:00:23]}  Ra1 {[%clk 0:01:26]} 31. Bc6 {[%clk 0:00:20]}  g6 {[%clk 0:01:17]} 32. c4 {[%clk 0:00:20]}  Kg7 {[%clk 0:01:15]} 33. Bb5 {[%clk 0:00:18]}  Rd8+ {[%clk 0:01:12]} 34. Kc3 {[%clk 0:00:17]}  Ra3+ {[%clk 0:01:11]} 35. Kb2 {[%clk 0:00:17]}  Rxf3 {[%clk 0:01:10]} 36. Rxa5 {[%clk 0:00:17]}  Rd2+ {[%clk 0:01:09]} 37. Kc1 {[%clk 0:00:17]}  Rh2 {[%clk 0:01:08]} 38. c5 {[%clk 0:00:14]}  Rc3+ {[%clk 0:01:08]} 39. Kb1 {[%clk 0:00:14]}  Rxc5 {[%clk 0:01:07]} 40. h5 {[%clk 0:00:13]}  gxh5 {[%clk 0:01:06]} 41. gxh5 {[%clk 0:00:13]}  Rhxh5 {[%clk 0:01:07]} 42. Ra7 {[%clk 0:00:11]}  Rxb5+ {[%clk 0:01:06]} 43. Ka1 {[%clk 0:00:04]}  Ra5+ {[%clk 0:01:06]} 0-1

[Event "November 21 Late 2023"]
[Site "https://www.chess.com"]
[Date "2023.11.21"]
[Round "2"]
[White "Ventura Bolet, Maxim"]
[Black "Maect19"]
[Result "0-1"]
[Board "125"]
[TimeControl "180+1"]
[WhiteFideId "22238824"]
[WhiteElo "2227"]
[BlackElo "2326"]
[WhiteTeam "ESP"]
[WhiteClock "0:00:00"]
[BlackClock "0:00:10"]

1. Nf3 {[%clk 0:03:00]}  d5 {[%clk 0:02:59]} 2. g3 {[%clk 0:02:57]}  c6 {[%clk 0:02:58]} 3. Bg2 {[%clk 0:02:57]}  Nf6 {[%clk 0:02:58]} 4. O-O {[%clk 0:02:57]}  Bf5 {[%clk 0:02:58]} 5. c4 {[%clk 0:02:56]}  e6 {[%clk 0:02:58]} 6. Qb3 {[%clk 0:02:48]}  Qb6 {[%clk 0:02:57]} 7. Qxb6 {[%clk 0:02:41]}  axb6 {[%clk 0:02:56]} 8. cxd5 {[%clk 0:02:42]}  exd5 {[%clk 0:02:54]} 9. d3 {[%clk 0:02:42]}  Nbd7 {[%clk 0:02:52]} 10. Bf4 {[%clk 0:02:37]}  Be7 {[%clk 0:02:49]} 11. Nc3 {[%clk 0:02:30]}  O-O {[%clk 0:02:47]} 12. Nh4 {[%clk 0:02:13]}  Be6 {[%clk 0:02:42]} 13. e4 {[%clk 0:02:08]}  dxe4 {[%clk 0:02:39]} 14. dxe4 {[%clk 0:02:06]}  Rfd8 {[%clk 0:02:36]} 15. Nf5 {[%clk 0:02:04]}  Bxf5 {[%clk 0:02:29]} 16. exf5 {[%clk 0:02:05]}  b5 {[%clk 0:02:22]} 17. Rfd1 {[%clk 0:01:42]}  Nb6 {[%clk 0:02:14]} 18. Rxd8+ {[%clk 0:01:36]}  Bxd8 {[%clk 0:02:14]} 19. Rd1 {[%clk 0:01:28]}  Nc4 {[%clk 0:02:11]} 20. b3 {[%clk 0:01:23]}  Nb6 {[%clk 0:02:02]} 21. Nxb5 {[%clk 0:01:04]}  Nbd5 {[%clk 0:01:44]} 22. Be5 {[%clk 0:00:42]}  Bb6 {[%clk 0:00:39]} 23. a4 {[%clk 0:00:18]}  Ng4 {[%clk 0:00:27]} 24. Bxd5 {[%clk 0:00:14]}  Nxe5 {[%clk 0:00:27]} 25. Nd6 {[%clk 0:00:10]}  cxd5 {[%clk 0:00:25]} 26. Rxd5 {[%clk 0:00:09]}  Ng4 {[%clk 0:00:23]} 27. Nxb7 {[%clk 0:00:08]}  Bxf2+ {[%clk 0:00:22]} 28. Kh1 {[%clk 0:00:06]}  h6 {[%clk 0:00:20]} 29. h3 {[%clk 0:00:06]}  Nf6 {[%clk 0:00:19]} 30. Rd3 {[%clk 0:00:06]}  Rb8 {[%clk 0:00:18]} 31. Na5 {[%clk 0:00:05]}  Ne4 {[%clk 0:00:18]} 32. Kg2 {[%clk 0:00:05]}  Be1 {[%clk 0:00:17]} 33. Re3 {[%clk 0:00:05]}  Bxa5 {[%clk 0:00:16]} 34. Rxe4 {[%clk 0:00:05]}  Rxb3 {[%clk 0:00:16]} 35. Re8+ {[%clk 0:00:03]}  Kh7 {[%clk 0:00:15]} 36. Ra8 {[%clk 0:00:04]}  Bb4 {[%clk 0:00:14]} 37. a5 {[%clk 0:00:03]}  Ra3 {[%clk 0:00:14]} 38. a6 {[%clk 0:00:04]}  Ra2+ {[%clk 0:00:14]} 39. Kf3 {[%clk 0:00:04]}  g6 {[%clk 0:00:14]} 40. fxg6+ {[%clk 0:00:04]}  fxg6 {[%clk 0:00:14]} 41. g4 {[%clk 0:00:03]}  Kg7 {[%clk 0:00:14]} 42. Ke4 {[%clk 0:00:04]}  Ra3 {[%clk 0:00:13]} 43. h4 {[%clk 0:00:04]}  Be1 {[%clk 0:00:13]} 44. h5 {[%clk 0:00:04]}  Ra4+ {[%clk 0:00:13]} 45. Kd5 {[%clk 0:00:03]}  gxh5 {[%clk 0:00:11]} 46. gxh5 {[%clk 0:00:03]}  Ra5+ {[%clk 0:00:11]} 47. Kc6 {[%clk 0:00:02]}  Bf2 {[%clk 0:00:12]} 48. Kb7 {[%clk 0:00:02]}  Rxh5 {[%clk 0:00:11]} 49. Rc8 {[%clk 0:00:00]}  Rf5 {[%clk 0:00:10]} 0-1

[Event "November 21 Late 2023"]
[Site "https://www.chess.com"]
[Date "2023.11.21"]
[Round "2"]
[White "ExchangeAB"]
[Black "Gerbelli Neto, Eduardo"]
[Result "1-0"]
[Board "126"]
[TimeControl "180+1"]
[BlackFideId "2103281"]
[WhiteElo "2497"]
[BlackElo "2178"]
[BlackTeam "BRA"]
[WhiteClock "0:00:33"]
[BlackClock "0:00:04"]

1. Nf3 {[%clk 0:03:00]}  Nf6 {[%clk 0:02:59]} 2. e3 {[%clk 0:03:01]}  d5 {[%clk 0:02:58]} 3. b3 {[%clk 0:03:01]}  c5 {[%clk 0:02:58]} 4. Bb2 {[%clk 0:03:01]}  e6 {[%clk 0:02:58]} 5. Bb5+ {[%clk 0:02:58]}  Bd7 {[%clk 0:02:58]} 6. Bxd7+ {[%clk 0:02:58]}  Nbxd7 {[%clk 0:02:58]} 7. d3 {[%clk 0:02:58]}  Bd6 {[%clk 0:02:57]} 8. Nbd2 {[%clk 0:02:54]}  Qc7 {[%clk 0:02:56]} 9. Qe2 {[%clk 0:02:49]}  b5 {[%clk 0:02:54]} 10. e4 {[%clk 0:02:47]}  e5 {[%clk 0:02:19]} 11. O-O {[%clk 0:02:34]}  d4 {[%clk 0:02:16]} 12. c3 {[%clk 0:02:27]}  O-O {[%clk 0:02:13]} 13. cxd4 {[%clk 0:02:26]}  exd4 {[%clk 0:02:05]} 14. Rac1 {[%clk 0:02:17]}  Qb8 {[%clk 0:02:04]} 15. b4 {[%clk 0:02:15]}  cxb4 {[%clk 0:01:53]} 16. Bxd4 {[%clk 0:02:14]}  Re8 {[%clk 0:01:50]} 17. g3 {[%clk 0:02:02]}  Ne5 {[%clk 0:01:30]} 18. Bxe5 {[%clk 0:01:55]}  Bxe5 {[%clk 0:01:30]} 19. d4 {[%clk 0:01:55]}  Bc7 {[%clk 0:01:28]} 20. e5 {[%clk 0:01:52]}  Nd5 {[%clk 0:01:24]} 21. Ne4 {[%clk 0:01:51]}  a6 {[%clk 0:01:16]} 22. Qd3 {[%clk 0:01:47]}  h6 {[%clk 0:01:08]} 23. Rc5 {[%clk 0:01:46]}  Qb7 {[%clk 0:01:04]} 24. Rfc1 {[%clk 0:01:45]}  Rac8 {[%clk 0:00:58]} 25. h4 {[%clk 0:01:40]}  Bb8 {[%clk 0:00:39]} 26. h5 {[%clk 0:01:22]}  Qd7 {[%clk 0:00:32]} 27. Kg2 {[%clk 0:01:14]}  Qg4 {[%clk 0:00:26]} 28. Qd2 {[%clk 0:00:44]}  Qxe4 {[%clk 0:00:25]} 29. Rxc8 {[%clk 0:00:43]}  Rxc8 {[%clk 0:00:15]} 30. Rxc8+ {[%clk 0:00:44]}  Kh7 {[%clk 0:00:16]} 31. Rxb8 {[%clk 0:00:43]}  Nc3 {[%clk 0:00:04]} 32. Qf4 {[%clk 0:00:33]} 1-0